[Event "*** Titled Tuesday Blitz"]
[Site "Chess.com"]
[Date "2019.07.02"]
[Round "9"]
[White "Aleksandr_Kholin"]
[Black "pedromartinez91"]
[Result "1-0"]
[WhiteElo "2399"]
[BlackElo "2430"]
[TimeControl "180+2"]
[EndTime "14:56:16 PDT"]
[Termination "Aleksandr_Kholin won by resignation"]

1. Nf3 {[%clk 0:03:01.9]} 1... e6 {[%clk 0:03:01]} 2. e4 {[%clk 0:02:59.1]} 2...
d5 {[%clk 0:03:02.9]} 3. Nc3 {[%clk 0:02:58.1]} 3... Nf6 {[%clk 0:03:03.2]} 4.
Bd3 {[%clk 0:02:57.6]} 4... dxe4 {[%clk 0:02:57.5]} 5. Nxe4 {[%clk 0:02:58.2]}
5... Nbd7 {[%clk 0:02:59.1]} 6. O-O {[%clk 0:02:56]} 6... Be7 {[%clk 0:03:00]}
7. c3 {[%clk 0:02:54.9]} 7... Nxe4 {[%clk 0:03:00.4]} 8. Bxe4 {[%clk 0:02:55.8]}
8... Nc5 {[%clk 0:03:02.3]} 9. Bc2 {[%clk 0:02:53.7]} 9... Nd3 {[%clk
0:03:03.9]} 10. Qe2 {[%clk 0:02:44.5]} 10... Nxc1 {[%clk 0:03:05]} 11. Raxc1
{[%clk 0:02:46.4]} 11... O-O {[%clk 0:03:06.3]} 12. d4 {[%clk 0:02:43.8]} 12...
c5 {[%clk 0:03:07.9]} 13. dxc5 {[%clk 0:02:40.3]} 13... Bxc5 {[%clk 0:03:09.8]}
14. Rcd1 {[%clk 0:02:39.4]} 14... Qb6 {[%clk 0:03:08.8]} 15. b4 {[%clk
0:02:36.5]} 15... Be7 {[%clk 0:03:08.5]} 16. Ne5 {[%clk 0:02:38]} 16... Bf6
{[%clk 0:03:08.6]} 17. Ng4 {[%clk 0:02:36.1]} 17... Be7 {[%clk 0:03:03.4]} 18.
a4 {[%clk 0:02:36]} 18... Rd8 {[%clk 0:02:56]} 19. Ne5 {[%clk 0:02:34]} 19...
Rd6 {[%clk 0:02:47]} 20. Bxh7+ {[%clk 0:02:32.5]} 20... Kf8 {[%clk 0:02:34.4]}
21. Qh5 {[%clk 0:02:31.1]} 21... g6 {[%clk 0:02:33.1]} 22. Qh6+ {[%clk 0:02:30]}
22... Ke8 {[%clk 0:02:33.8]} 23. Qg7 {[%clk 0:02:30.5]} 23... Bd7 {[%clk
0:02:29.4]} 24. Qg8+ {[%clk 0:02:29]} 24... Bf8 {[%clk 0:02:30]} 25. Qxf7+
{[%clk 0:02:30.9]} 25... Kd8 {[%clk 0:02:30.2]} 26. Qxf8+ {[%clk 0:02:32.5]}
26... Kc7 {[%clk 0:02:32.1]} 27. Qxa8 {[%clk 0:02:33.9]} 27... Rxd1 {[%clk
0:02:32.7]} 28. Rxd1 {[%clk 0:02:30.8]} 28... Bxa4 {[%clk 0:02:34.6]} 1-0

[Event "*** Titled Tuesday Blitz"]
[Site "Chess.com"]
[Date "2019.07.02"]
[Round "9"]
[White "Vadim_Biliy"]
[Black "LarissaSteenbekkers"]
[Result "1-0"]
[WhiteElo "2229"]
[BlackElo "1976"]
[TimeControl "180+2"]
[EndTime "14:56:45 PDT"]
[Termination "Vadim_Biliy won by resignation"]

1. e4 {[%clk 0:03:01.9]} 1... e6 {[%clk 0:02:50]} 2. d4 {[%clk 0:03:00.2]} 2...
d5 {[%clk 0:02:50.6]} 3. exd5 {[%clk 0:02:57.5]} 3... exd5 {[%clk 0:02:50.3]} 4.
Qe2+ {[%clk 0:02:56]} 4... Be7 {[%clk 0:02:48.2]} 5. Nc3 {[%clk 0:02:55.4]} 5...
Nf6 {[%clk 0:02:47.3]} 6. Be3 {[%clk 0:02:52.8]} 6... O-O {[%clk 0:02:46.7]} 7.
O-O-O {[%clk 0:02:53]} 7... Bf5 {[%clk 0:02:44.3]} 8. f3 {[%clk 0:02:51.1]} 8...
c6 {[%clk 0:02:40.6]} 9. g4 {[%clk 0:02:50.6]} 9... Be6 {[%clk 0:02:35.7]} 10.
h4 {[%clk 0:02:48.8]} 10... b5 {[%clk 0:02:34.6]} 11. h5 {[%clk 0:02:47]} 11...
b4 {[%clk 0:02:33.9]} 12. Na4 {[%clk 0:02:46.2]} 12... Qa5 {[%clk 0:02:32.9]}
13. b3 {[%clk 0:02:46.8]} 13... Nfd7 {[%clk 0:02:31.5]} 14. Nh3 {[%clk 0:02:39]}
14... Nb6 {[%clk 0:02:30.7]} 15. Nf4 {[%clk 0:02:28.8]} 15... Nxa4 {[%clk
0:02:28.3]} 16. bxa4 {[%clk 0:02:28.6]} 16... Qxa4 {[%clk 0:02:28.2]} 17. Kb1
{[%clk 0:02:12.6]} 17... Na6 {[%clk 0:02:15.9]} 18. Nxe6 {[%clk 0:02:11.9]}
18... fxe6 {[%clk 0:02:13.3]} 19. Bc1 {[%clk 0:02:11.6]} 19... Kh8 {[%clk
0:01:51.7]} 20. Qxa6 {[%clk 0:02:10.7]} 1-0

[Event "*** Titled Tuesday Blitz"]
[Site "Chess.com"]
[Date "2019.07.02"]
[Round "9"]
[White "kosya4ok"]
[Black "IMAghasiyevKamal"]
[Result "0-1"]
[WhiteElo "2743"]
[BlackElo "2566"]
[TimeControl "180+2"]
[EndTime "14:56:49 PDT"]
[Termination "IMAghasiyevKamal won by resignation"]

1. c4 {[%clk 0:03:01.9]} 1... e5 {[%clk 0:02:59.5]} 2. Nc3 {[%clk 0:03:03.1]}
2... Nf6 {[%clk 0:02:59.8]} 3. Nf3 {[%clk 0:03:03]} 3... Nc6 {[%clk 0:03:00.9]}
4. e3 {[%clk 0:03:04.4]} 4... Bb4 {[%clk 0:02:59.4]} 5. Qc2 {[%clk 0:03:05.6]}
5... O-O {[%clk 0:02:56.9]} 6. a3 {[%clk 0:03:01]} 6... Bxc3 {[%clk 0:02:57]} 7.
Qxc3 {[%clk 0:02:59.8]} 7... e4 {[%clk 0:02:53.3]} 8. Nd4 {[%clk 0:02:55.3]}
8... Ne5 {[%clk 0:02:49.2]} 9. b3 {[%clk 0:02:49]} 9... d6 {[%clk 0:02:50.3]}
10. Bb2 {[%clk 0:02:49.5]} 10... a6 {[%clk 0:02:41.1]} 11. f4 {[%clk 0:02:50.6]}
11... exf3 {[%clk 0:02:34.6]} 12. Nxf3 {[%clk 0:02:48.3]} 12... Re8 {[%clk
0:02:29.1]} 13. Be2 {[%clk 0:02:45.1]} 13... Ne4 {[%clk 0:02:24.2]} 14. Qd4
{[%clk 0:02:22]} 14... Bf5 {[%clk 0:02:08.8]} 15. O-O {[%clk 0:02:10.2]} 15...
Bg6 {[%clk 0:02:09.6]} 16. Rad1 {[%clk 0:01:51.1]} 16... c5 {[%clk 0:02:07.6]}
17. Qd5 {[%clk 0:01:52]} 17... Nf6 {[%clk 0:02:07.4]} 18. Qxb7 {[%clk
0:01:43.6]} 18... Be4 {[%clk 0:02:07.1]} 0-1

[Event "*** Titled Tuesday Blitz"]
[Site "Chess.com"]
[Date "2019.07.02"]
[Round "9"]
[White "Sanan_Sjugirov"]
[Black "Hikaru"]
[Result "1/2-1/2"]
[WhiteElo "2967"]
[BlackElo "3151"]
[TimeControl "180+2"]
[EndTime "14:57:27 PDT"]
[Termination "Game drawn by agreement"]

1. d4 {[%clk 0:03:01.9]} 1... Nf6 {[%clk 0:03:00.5]} 2. c4 {[%clk 0:03:02.5]}
2... e6 {[%clk 0:03:01.5]} 3. Nf3 {[%clk 0:03:03.3]} 3... d5 {[%clk 0:03:02.8]}
4. Nc3 {[%clk 0:03:04]} 4... Be7 {[%clk 0:03:04.1]} 5. Bg5 {[%clk 0:02:52.8]}
5... h6 {[%clk 0:03:04.4]} 6. Bxf6 {[%clk 0:02:39.3]} 6... Bxf6 {[%clk
0:03:06.3]} 7. e3 {[%clk 0:02:40.7]} 7... c6 {[%clk 0:02:58.8]} 8. Rc1 {[%clk
0:02:39.2]} 8... dxc4 {[%clk 0:02:56.1]} 9. Bxc4 {[%clk 0:02:38.9]} 9... Nd7
{[%clk 0:02:56.5]} 10. O-O {[%clk 0:02:35.8]} 10... O-O {[%clk 0:02:57.6]} 11.
e4 {[%clk 0:02:24.2]} 11... e5 {[%clk 0:02:44.8]} 12. d5 {[%clk 0:02:25]} 12...
Nb6 {[%clk 0:02:40.9]} 13. Bb3 {[%clk 0:02:25.2]} 13... cxd5 {[%clk 0:02:38.2]}
14. Nxd5 {[%clk 0:02:25.2]} 14... Be6 {[%clk 0:02:37]} 15. Nxf6+ {[%clk
0:02:00]} 15... Qxf6 {[%clk 0:02:38.9]} 16. Qd6 {[%clk 0:02:00.3]} 16... Rad8
{[%clk 0:02:22.6]} 17. Qxe5 {[%clk 0:01:56]} 17... Qxe5 {[%clk 0:02:23.4]} 18.
Nxe5 {[%clk 0:01:57.9]} 18... Bxb3 {[%clk 0:02:25.3]} 19. axb3 {[%clk
0:01:59.1]} 19... Rfe8 {[%clk 0:02:26.9]} 20. Rc5 {[%clk 0:01:27.1]} 20... f6
{[%clk 0:02:07.3]} 21. Nc4 {[%clk 0:01:24.6]} 21... Rxe4 {[%clk 0:02:07.7]}
1/2-1/2

[Event "*** Titled Tuesday Blitz"]
[Site "Chess.com"]
[Date "2019.07.02"]
[Round "9"]
[White "Nightlord1"]
[Black "FairChess_on_YouTube"]
[Result "1-0"]
[WhiteElo "2193"]
[BlackElo "3011"]
[TimeControl "180+2"]
[EndTime "14:57:35 PDT"]
[Termination "Nightlord1 won by resignation"]

1. e4 {[%clk 0:03:01.9]} 1... b6 {[%clk 0:03:00.4]} 2. d4 {[%clk 0:03:01.6]}
2... Bb7 {[%clk 0:03:02]} 3. Bd3 {[%clk 0:03:00.3]} 3... Nc6 {[%clk 0:03:01.1]}
4. c3 {[%clk 0:03:00.1]} 4... e5 {[%clk 0:03:02]} 5. Nf3 {[%clk 0:02:57.7]} 5...
Qf6 {[%clk 0:03:02.6]} 6. O-O {[%clk 0:02:45.1]} 6... h6 {[%clk 0:03:03.5]} 7.
Be3 {[%clk 0:02:36.6]} 7... Nge7 {[%clk 0:02:58.1]} 8. Nbd2 {[%clk 0:02:29.5]}
8... Ng6 {[%clk 0:02:58.9]} 9. Nc4 {[%clk 0:02:28.3]} 9... Be7 {[%clk
0:02:58.9]} 10. g3 {[%clk 0:02:20.8]} 10... O-O {[%clk 0:02:54]} 11. h4 {[%clk
0:02:21.8]} 11... b5 {[%clk 0:02:45.5]} 12. Ncd2 {[%clk 0:02:14.5]} 12... b4
{[%clk 0:02:46.7]} 13. d5 {[%clk 0:01:39.6]} 13... Nd8 {[%clk 0:02:46]} 14. h5
{[%clk 0:01:38.4]} 14... Nh8 {[%clk 0:02:47]} 15. Nc4 {[%clk 0:01:35.9]} 15...
bxc3 {[%clk 0:02:45.4]} 16. Nfxe5 {[%clk 0:01:34.1]} 16... cxb2 {[%clk
0:02:44.9]} 17. Rb1 {[%clk 0:01:32.5]} 17... Bc8 {[%clk 0:02:41.5]} 18. Ng4
{[%clk 0:01:29.5]} 18... Qc3 {[%clk 0:02:41.5]} 19. Rxb2 {[%clk 0:01:24.9]}
19... d6 {[%clk 0:02:42.7]} 20. Nh2 {[%clk 0:01:16.5]} 20... f5 {[%clk
0:02:30.3]} 21. e5 {[%clk 0:00:58.6]} 21... f4 {[%clk 0:02:31.6]} 22. gxf4
{[%clk 0:00:57.2]} 22... dxe5 {[%clk 0:02:32.1]} 23. fxe5 {[%clk 0:00:56.6]}
23... Bf5 {[%clk 0:02:30.6]} 24. Rb3 {[%clk 0:00:55.3]} 1-0

[Event "*** Titled Tuesday Blitz"]
[Site "Chess.com"]
[Date "2019.07.02"]
[Round "9"]
[White "CMS13"]
[Black "pr1105"]
[Result "1-0"]
[WhiteElo "2020"]
[BlackElo "2190"]
[TimeControl "180+2"]
[EndTime "14:57:45 PDT"]
[Termination "CMS13 won by resignation"]

1. e4 {[%clk 0:03:01.9]} 1... e5 {[%clk 0:02:58.6]} 2. Bc4 {[%clk 0:03:02.6]}
2... Nf6 {[%clk 0:02:51.9]} 3. Nc3 {[%clk 0:03:03.2]} 3... Nc6 {[%clk
0:02:50.7]} 4. d3 {[%clk 0:03:04.2]} 4... Bc5 {[%clk 0:02:49.3]} 5. f4 {[%clk
0:03:05.1]} 5... O-O {[%clk 0:02:47.5]} 6. Nf3 {[%clk 0:03:06.1]} 6... d6 {[%clk
0:02:31.9]} 7. Na4 {[%clk 0:03:06.6]} 7... Bg4 {[%clk 0:02:32.1]} 8. Nxc5 {[%clk
0:03:05.6]} 8... dxc5 {[%clk 0:02:34]} 9. O-O {[%clk 0:03:06.1]} 9... Bxf3
{[%clk 0:02:32.9]} 10. Qxf3 {[%clk 0:03:07]} 10... Nd4 {[%clk 0:02:34.8]} 11.
Qf2 {[%clk 0:03:07.9]} 11... Qd6 {[%clk 0:02:36.4]} 12. c3 {[%clk 0:03:02.8]}
12... Nc6 {[%clk 0:02:32.3]} 13. Be3 {[%clk 0:03:00.3]} 13... b6 {[%clk
0:02:22.9]} 14. fxe5 {[%clk 0:02:57.5]} 14... Nxe5 {[%clk 0:02:23.3]} 15. Bf4
{[%clk 0:02:52]} 15... Qe7 {[%clk 0:02:24.1]} 16. Bg5 {[%clk 0:02:29.8]} 16...
Nxc4 {[%clk 0:02:18.8]} 17. dxc4 {[%clk 0:02:31.1]} 17... Qxe4 {[%clk 0:02:01]}
18. Bxf6 {[%clk 0:02:29.7]} 18... gxf6 {[%clk 0:02:02.9]} 19. Qxf6 {[%clk
0:02:30.2]} 19... Rae8 {[%clk 0:01:34.8]} 20. Rf5 {[%clk 0:02:02.8]} 20... Qe3+
{[%clk 0:01:25.8]} 21. Kh1 {[%clk 0:02:03.7]} 21... Re6 {[%clk 0:01:14.6]} 22.
Rg5+ {[%clk 0:02:02]} 22... Qxg5 {[%clk 0:01:14.2]} 23. Qxg5+ {[%clk 0:02:03]}
23... Rg6 {[%clk 0:01:14.7]} 24. Qf4 {[%clk 0:02:02.5]} 1-0

[Event "*** Titled Tuesday Blitz"]
[Site "Chess.com"]
[Date "2019.07.02"]
[Round "9"]
[White "vugarrasulov"]
[Black "ecwinslow"]
[Result "1-0"]
[WhiteElo "2754"]
[BlackElo "1961"]
[TimeControl "180+2"]
[EndTime "14:58:03 PDT"]
[Termination "vugarrasulov won by resignation"]

1. e4 {[%clk 0:03:01.9]} 1... c5 {[%clk 0:03:00.3]} 2. Nc3 {[%clk 0:03:02.4]}
2... d6 {[%clk 0:02:59.8]} 3. f4 {[%clk 0:03:03.6]} 3... g6 {[%clk 0:02:59.9]}
4. Nf3 {[%clk 0:03:04.9]} 4... Nc6 {[%clk 0:03:00.7]} 5. Bc4 {[%clk 0:03:04.3]}
5... Bg7 {[%clk 0:02:59.9]} 6. O-O {[%clk 0:03:05.9]} 6... e6 {[%clk 0:02:58.9]}
7. f5 {[%clk 0:03:07.2]} 7... exf5 {[%clk 0:02:59.2]} 8. d3 {[%clk 0:03:07.5]}
8... h6 {[%clk 0:02:56.4]} 9. Qe1 {[%clk 0:03:07.6]} 9... Nge7 {[%clk
0:02:57.2]} 10. Qh4 {[%clk 0:03:04.4]} 10... Ne5 {[%clk 0:02:23.2]} 11. Nxe5
{[%clk 0:02:59.6]} 11... dxe5 {[%clk 0:02:19.2]} 12. Kh1 {[%clk 0:02:54.3]}
12... f4 {[%clk 0:02:13.9]} 13. Bxf4 {[%clk 0:02:49.3]} 13... exf4 {[%clk
0:02:08.5]} 14. Qxf4 {[%clk 0:02:48.1]} 14... O-O {[%clk 0:02:04]} 15. Bxf7+
{[%clk 0:02:46.7]} 15... Kh7 {[%clk 0:02:03.8]} 16. e5 {[%clk 0:02:48]} 16...
Be6 {[%clk 0:02:00.2]} 17. Ne4 {[%clk 0:02:33.7]} 17... Rxf7 {[%clk 0:01:57.2]}
18. Qh4 {[%clk 0:02:34.9]} 18... Nf5 {[%clk 0:01:55.2]} 19. Qf2 {[%clk
0:02:31.6]} 19... Bxe5 {[%clk 0:01:49.8]} 20. Qxc5 {[%clk 0:02:28.2]} 20... Bd4
{[%clk 0:01:45.2]} 21. Qb4 {[%clk 0:02:25.9]} 21... Bd5 {[%clk 0:01:41.1]} 22.
c3 {[%clk 0:02:23.5]} 22... Bxe4 {[%clk 0:01:36.7]} 23. dxe4 {[%clk 0:02:24.4]}
23... Bb6 {[%clk 0:01:18.3]} 24. exf5 {[%clk 0:02:23.2]} 24... gxf5 {[%clk
0:01:19.3]} 25. Rad1 {[%clk 0:02:22]} 25... Qg5 {[%clk 0:01:17.9]} 26. a4 {[%clk
0:02:18.6]} 26... Rg8 {[%clk 0:01:14.3]} 27. g3 {[%clk 0:02:15.4]} 27... Qe3
{[%clk 0:01:12.3]} 28. a5 {[%clk 0:02:12.1]} 28... Qe4+ {[%clk 0:01:11.4]} 29.
Qxe4 {[%clk 0:02:12.7]} 1-0

[Event "*** Titled Tuesday Blitz"]
[Site "Chess.com"]
[Date "2019.07.02"]
[Round "9"]
[White "Alopekos"]
[Black "Supernotar"]
[Result "1-0"]
[WhiteElo "2484"]
[BlackElo "2583"]
[TimeControl "180+2"]
[EndTime "14:58:25 PDT"]
[Termination "Alopekos won by resignation"]

1. e4 {[%clk 0:03:01.9]} 1... c6 {[%clk 0:02:59.6]} 2. d4 {[%clk 0:03:02.2]}
2... d5 {[%clk 0:02:58.2]} 3. Nd2 {[%clk 0:03:03.4]} 3... dxe4 {[%clk
0:02:58.7]} 4. Nxe4 {[%clk 0:03:05.3]} 4... Bf5 {[%clk 0:02:58.3]} 5. Ng3 {[%clk
0:03:06.3]} 5... Bg6 {[%clk 0:02:54.6]} 6. h4 {[%clk 0:03:04.5]} 6... h6 {[%clk
0:02:55.6]} 7. Nf3 {[%clk 0:03:05.3]} 7... Nd7 {[%clk 0:02:55.8]} 8. h5 {[%clk
0:03:06.8]} 8... Bh7 {[%clk 0:02:55.3]} 9. Bd3 {[%clk 0:03:08.3]} 9... Bxd3
{[%clk 0:02:55.8]} 10. Qxd3 {[%clk 0:03:10.2]} 10... e6 {[%clk 0:02:56.9]} 11.
Bd2 {[%clk 0:03:11.2]} 11... Ngf6 {[%clk 0:02:57.5]} 12. O-O-O {[%clk
0:03:12.1]} 12... Be7 {[%clk 0:02:58.7]} 13. Kb1 {[%clk 0:03:10.9]} 13... O-O
{[%clk 0:02:59.3]} 14. Qe2 {[%clk 0:03:11.5]} 14... c5 {[%clk 0:02:59.6]} 15. d5
{[%clk 0:03:12.5]} 15... Nxd5 {[%clk 0:02:55.8]} 16. Ne4 {[%clk 0:03:12.8]}
16... Qc7 {[%clk 0:02:51.2]} 17. g4 {[%clk 0:03:01]} 17... Nf4 {[%clk
0:02:32.6]} 18. Bxf4 {[%clk 0:03:00.2]} 18... Qxf4 {[%clk 0:02:29.3]} 19. Rxd7
{[%clk 0:03:01.1]} 19... Rae8 {[%clk 0:02:22.5]} 20. Qe3 {[%clk 0:02:56.1]}
20... Qxe3 {[%clk 0:02:13.7]} 21. fxe3 {[%clk 0:02:56.9]} 21... f5 {[%clk
0:02:15]} 22. gxf5 {[%clk 0:02:51.1]} 22... exf5 {[%clk 0:02:11.5]} 23. Nc3
{[%clk 0:02:44.3]} 23... Bd8 {[%clk 0:02:10.1]} 24. Nd5 {[%clk 0:02:20]} 24...
Rf7 {[%clk 0:02:04.6]} 25. Rxf7 {[%clk 0:02:20.2]} 25... Kxf7 {[%clk 0:02:05.5]}
26. c4 {[%clk 0:02:18.5]} 26... Re4 {[%clk 0:02:04.4]} 27. b3 {[%clk 0:02:17.7]}
27... Ba5 {[%clk 0:02:03.8]} 28. Kc2 {[%clk 0:02:16.6]} 28... a6 {[%clk
0:02:03.8]} 29. Kd3 {[%clk 0:02:16.2]} 29... b5 {[%clk 0:02:03]} 30. Nh4 {[%clk
0:01:43]} 30... Ke6 {[%clk 0:02:02.2]} 31. Nf4+ {[%clk 0:01:38.9]} 31... Kf6
{[%clk 0:02:00.1]} 32. Rg1 {[%clk 0:01:40]} 32... bxc4+ {[%clk 0:01:56.8]} 33.
bxc4 {[%clk 0:01:39.1]} 33... Re8 {[%clk 0:01:48.7]} 34. Rg6+ {[%clk 0:01:38.6]}
34... Kf7 {[%clk 0:01:48.5]} 35. Nxf5 {[%clk 0:01:38.5]} 1-0

[Event "*** Titled Tuesday Blitz"]
[Site "Chess.com"]
[Date "2019.07.02"]
[Round "9"]
[White "INLOVEWITHF"]
[Black "EndgameGrinder"]
[Result "0-1"]
[WhiteElo "2402"]
[BlackElo "2575"]
[TimeControl "180+2"]
[EndTime "14:58:39 PDT"]
[Termination "EndgameGrinder won by resignation"]

1. Nf3 {[%clk 0:03:00.9]} 1... c5 {[%clk 0:03:01.2]} 2. e4 {[%clk 0:02:58.9]}
2... e6 {[%clk 0:03:01.9]} 3. d4 {[%clk 0:02:59.7]} 3... cxd4 {[%clk 0:03:03.8]}
4. Nxd4 {[%clk 0:03:01.3]} 4... Nc6 {[%clk 0:03:05.5]} 5. Nc3 {[%clk 0:03:01.6]}
5... Qc7 {[%clk 0:03:07]} 6. Be3 {[%clk 0:03:02.4]} 6... a6 {[%clk 0:03:08.7]}
7. Qf3 {[%clk 0:03:03.7]} 7... d6 {[%clk 0:03:10.2]} 8. O-O-O {[%clk 0:03:03.7]}
8... Bd7 {[%clk 0:03:11.3]} 9. Nxc6 {[%clk 0:03:00.9]} 9... Bxc6 {[%clk
0:03:11.4]} 10. Qg3 {[%clk 0:03:00.5]} 10... Rc8 {[%clk 0:03:08]} 11. f3 {[%clk
0:02:58.2]} 11... Nf6 {[%clk 0:03:08.4]} 12. Kb1 {[%clk 0:02:54.7]} 12... b5
{[%clk 0:03:07.8]} 13. a3 {[%clk 0:02:55.3]} 13... Qb7 {[%clk 0:02:55.2]} 14.
Bf4 {[%clk 0:02:48]} 14... Nh5 {[%clk 0:02:39.6]} 15. Qg4 {[%clk 0:02:47.3]}
15... Nxf4 {[%clk 0:02:41]} 16. Qxf4 {[%clk 0:02:49.2]} 16... a5 {[%clk
0:02:42.3]} 17. Qg5 {[%clk 0:02:39.5]} 17... h6 {[%clk 0:02:34]} 18. Qe3 {[%clk
0:02:17]} 18... b4 {[%clk 0:02:32]} 19. Ne2 {[%clk 0:02:11.9]} 19... bxa3 {[%clk
0:02:26.9]} 20. Qxa3 {[%clk 0:02:13.8]} 20... d5 {[%clk 0:02:22.8]} 21. Qxa5
{[%clk 0:02:14.3]} 21... dxe4 {[%clk 0:02:06.8]} 22. Nd4 {[%clk 0:02:09]} 22...
Bb4 {[%clk 0:02:07.5]} 23. Qe5 {[%clk 0:02:07.4]} 23... O-O {[%clk 0:02:05.5]}
24. Nxc6 {[%clk 0:02:04.5]} 24... Rxc6 {[%clk 0:02:03]} 25. Qxe4 {[%clk
0:01:58.9]} 25... Bc3 {[%clk 0:01:59.6]} 26. b3 {[%clk 0:01:06.8]} 26... Ra8
{[%clk 0:01:58.1]} 27. Rd8+ {[%clk 0:00:57]} 27... Rxd8 {[%clk 0:01:56.5]} 28.
Bb5 {[%clk 0:00:51.9]} 0-1

[Event "*** Titled Tuesday Blitz"]
[Site "Chess.com"]
[Date "2019.07.02"]
[Round "9"]
[White "King_of_the_wing"]
[Black "PNEPaul"]
[Result "1-0"]
[WhiteElo "2145"]
[BlackElo "1827"]
[TimeControl "180+2"]
[EndTime "14:58:39 PDT"]
[Termination "King_of_the_wing won by resignation"]

1. e4 {[%clk 0:03:01.8]} 1... e5 {[%clk 0:03:00.3]} 2. Nf3 {[%clk 0:03:02.6]}
2... Nc6 {[%clk 0:03:01.3]} 3. c3 {[%clk 0:03:04.1]} 3... Be7 {[%clk 0:03:01.5]}
4. d4 {[%clk 0:03:03.1]} 4... exd4 {[%clk 0:03:00.7]} 5. cxd4 {[%clk 0:03:04]}
5... d6 {[%clk 0:03:01.7]} 6. Nc3 {[%clk 0:03:05]} 6... Bg4 {[%clk 0:02:59.8]}
7. Be2 {[%clk 0:03:03.5]} 7... Nf6 {[%clk 0:02:59.2]} 8. O-O {[%clk 0:03:01.2]}
8... O-O {[%clk 0:02:56.2]} 9. Be3 {[%clk 0:03:01.8]} 9... d5 {[%clk 0:02:53.7]}
10. e5 {[%clk 0:02:57.2]} 10... Ne4 {[%clk 0:02:52.9]} 11. Qb3 {[%clk
0:02:47.2]} 11... Nxc3 {[%clk 0:02:31.2]} 12. bxc3 {[%clk 0:02:47.9]} 12... b6
{[%clk 0:02:31.9]} 13. Rfe1 {[%clk 0:02:30.5]} 13... h6 {[%clk 0:02:19.1]} 14.
Qa4 {[%clk 0:02:16.4]} 14... Na5 {[%clk 0:02:11]} 15. Nd2 {[%clk 0:02:12.3]}
15... Bxe2 {[%clk 0:01:49.9]} 16. Rxe2 {[%clk 0:02:11.5]} 16... Qe8 {[%clk
0:01:48.5]} 17. Qc2 {[%clk 0:02:01.5]} 17... Qc6 {[%clk 0:01:41]} 18. f4 {[%clk
0:01:58]} 18... Nc4 {[%clk 0:01:38.9]} 19. Nxc4 {[%clk 0:01:55.1]} 19... Qxc4
{[%clk 0:01:39.5]} 20. f5 {[%clk 0:01:53.2]} 20... Bg5 {[%clk 0:01:13.7]} 21.
Bxg5 {[%clk 0:01:51.5]} 21... hxg5 {[%clk 0:01:14.5]} 22. f6 {[%clk 0:01:47.9]}
22... c5 {[%clk 0:01:05.6]} 23. Qd2 {[%clk 0:01:43.8]} 23... cxd4 {[%clk
0:00:46.3]} 24. Qxg5 {[%clk 0:01:43.7]} 24... g6 {[%clk 0:00:44.8]} 25. Qh6
{[%clk 0:01:44.3]} 1-0

[Event "*** Titled Tuesday Blitz"]
[Site "Chess.com"]
[Date "2019.07.02"]
[Round "9"]
[White "STARMATEcc"]
[Black "Zq1"]
[Result "0-1"]
[WhiteElo "2544"]
[BlackElo "2566"]
[TimeControl "180+2"]
[EndTime "14:59:14 PDT"]
[Termination "Zq1 won by resignation"]

1. e4 {[%clk 0:02:31]} 1... c5 {[%clk 0:02:58.3]} 2. Nf3 {[%clk 0:02:32.4]} 2...
d6 {[%clk 0:02:59.5]} 3. d4 {[%clk 0:02:33.9]} 3... cxd4 {[%clk 0:03:00.6]} 4.
Nxd4 {[%clk 0:02:35.2]} 4... Nf6 {[%clk 0:03:01.7]} 5. Nc3 {[%clk 0:02:36.4]}
5... Nc6 {[%clk 0:03:03.3]} 6. Bg5 {[%clk 0:02:30.1]} 6... g6 {[%clk 0:03:04.1]}
7. Bxf6 {[%clk 0:02:25.4]} 7... exf6 {[%clk 0:03:04.8]} 8. Bc4 {[%clk
0:02:21.3]} 8... Bg7 {[%clk 0:03:05.3]} 9. O-O {[%clk 0:02:21.2]} 9... Nxd4
{[%clk 0:02:58.9]} 10. Qxd4 {[%clk 0:02:22.2]} 10... O-O {[%clk 0:03:00.5]} 11.
Qd2 {[%clk 0:02:10.9]} 11... f5 {[%clk 0:03:01.1]} 12. exf5 {[%clk 0:02:11.5]}
12... Bxf5 {[%clk 0:03:00.9]} 13. Rad1 {[%clk 0:02:12.8]} 13... Rc8 {[%clk
0:02:55.4]} 14. Bb3 {[%clk 0:02:09]} 14... Bxc3 {[%clk 0:02:35]} 15. bxc3 {[%clk
0:02:09.4]} 15... Qa5 {[%clk 0:02:31]} 16. Rfe1 {[%clk 0:01:49.5]} 16... Qxc3
{[%clk 0:02:29.7]} 17. Qxd6 {[%clk 0:01:48]} 17... Bxc2 {[%clk 0:02:02.9]} 18.
Rc1 {[%clk 0:01:31.5]} 18... Qa5 {[%clk 0:01:57.8]} 19. Bxf7+ {[%clk 0:00:34.7]}
19... Rxf7 {[%clk 0:01:53.4]} 20. Qe6 {[%clk 0:00:30.2]} 20... Rc6 {[%clk
0:01:36.1]} 21. Qe8+ {[%clk 0:00:29.8]} 21... Rf8 {[%clk 0:01:30.1]} 0-1